Cogmind - Beta 17.1 @@@ ROGUE MODE // 2026.09.03 @ 20:24:17 Player: leiavoia Result: Destroyed by S-10 Pest with Light Assault Rifle Performance ------------- Evolutions (0) 0 Regions Visited (2) 400 Robots Destroyed (47) 235 Value Destroyed (961) 961 Prototype IDs (3) 60 Alien Tech Used (0) 0 Bonus (0) 0 TOTAL SCORE: 1656 Bonus ------- None Cogmind --------- Core Integrity 0/250 Matter 236/300 Energy 200/200 System Corruption 0% Temperature Cool (0) Movement Treading (320) Ox2 Location -10/Subcaves Parts ------- > --- POWER (1) -------- Subdweller Power Source > --- PROPULSION (2) --- Light Treads Light Treads > --- UTILITY (2) ------ Huge Storage Unit Core Shielding > --- WEAPON (2) ------- Subdweller Beam Cannon Battle Cannon > --- INVENTORY (25) --- Light Ion Engine Light Nuclear Core Light Treads Improved Aluminum Leg Improved Aluminum Leg Improved Aluminum Leg Improved Aluminum Leg Wheel Wheel Wheel Heat Sink Disposable Heat Sink Large Storage Unit Huge Storage Unit Large Matter Pod (150) Sensor Array Improved Terrain Scanner Seismic Detector Core Shielding Tractor Beam Improved EM Shotgun Light Assault Rifle Light Assault Rifle Subdweller Machine Gun Peak State ------------ > --- POWER ------------ Light Nuclear Core > --- PROPULSION ------- Light Treads Light Treads > --- UTILITY ---------- Huge Storage Unit Core Shielding > --- WEAPON ----------- Improved EM Shotgun Improved EM Shotgun > --- INVENTORY -------- Light Ion Engine Light Treads Light Treads Improved Aluminum Leg Improved Aluminum Leg Improved Aluminum Leg Improved Aluminum Leg Wheel Heat Sink Disposable Heat Sink Large Storage Unit Huge Storage Unit Large Matter Pod Sensor Array Improved Terrain Scanner Seismic Detector Tractor Beam EM Pulse Gun Improved EM Shotgun Improved EM Shotgun Light Assault Rifle Light Assault Rifle [Rating: 16] Favorites ----------- Power Light Nuclear Core Engine Light Ion Engine Power Core Light Nuclear Core Propulsion Light Treads Treads Light Treads Utility Huge Storage Unit Device Seismic Detector Storage Huge Storage Unit Protection Core Shielding Weapon Improved EM Shotgun Energy Gun Improved EM Shotgun Energy Cannon Subdweller Beam Cannon Ballistic Gun Assault Rifle Ballistic Cannon Battle Cannon Build | -11 -10 -10 ------- Run | Yrd Mat Sub Slots Evolved . | . . . Power . | . . . Propulsion . | . . . Utility . | . . . Weapon . | . . . Parts Attached 34 | 9 15 10 Power 7 | 1 4 2 Engine 4 | 1 2 1 Core 3 | . 2 1 Reactor . | . . . Propulsion 4 | 2 1 1 Treads 4 | 2 1 1 Leg . | . . . Wheel . | . . . Hover . | . . . Flight . | . . . Utility 10 | 3 6 1 Device 2 | 2 . . Storage 4 | 1 3 . Processor . | . . . Hackware . | . . . Protection 4 | . 3 1 Artifact . | . . . Weapon 13 | 3 4 6 Energy Gun 5 | . 3 2 Energy Cannon 1 | . . 1 Ballistic Gun 6 | 3 1 2 Ballistic Cannon 1 | . . 1 Launcher . | . . . Special Weapon . | . . . Impact Weapon . | . . . Slashing Weapon . | . . . Piercing Weapon . | . . . Special Melee Weapon . | . . . Unidentified Prototypes 1 | . 1 . Parts Lost 10 | . 5 5 Power 2 | . 2 . Propulsion 2 | . 1 1 Utility 1 | . 1 . Weapon 5 | . 1 4 Highest Loss Streak 3 | . 3 3 To Critical Strikes . | . . . Average Backups 20 | 1 20 22 Power 1 | . 1 1 Propulsion 6 | . 6 8 Utility 8 | . 8 10 Weapon 3 | . 4 2 Tool/Special . | . . . Unused Backups 15 | . 1 14 Power . | . . . Propulsion 9 | . 1 8 Utility 6 | . . 6 Weapon . | . . . Tool/Special . | . . . Average Slot Usage (%) 99 | . 99 100 Engine 2 | . 3 1 Core 11 | . 10 12 Treads 27 | . 27 28 Device 3 | . . 9 Storage 14 | . 14 14 Protection 10 | . 13 4 Energy Gun 11 | . 13 6 Ballistic Gun 12 | . 14 9 Ballistic Cannon 3 | . . 11 Peak Build Rating 16 | 9 16 16 Average Rating 13 | 6 13 13 On Entrance 7 | . 7 16 Avg Prop Armor Cover (%) . | . . . Naked Turns . | . . . Heaviest Build 97 | 13 92 97 Greatest Support 40 | 40 40 40 Greatest Overweight (x) 2 | 2 2 2 Average Overweight (x) 1 | . 1 2 Largest Inventory Capacity 25 | 8 25 25 Average Capacity 23 | 7 23 25 Most Carried 25 | 3 25 25 Average Carried 20 | 1 20 22 Final Capacity 25 | 8 25 25 Final Carried 24 | 3 24 24 Class Distribution -------------------- 100% | Mutant Dominant Class ---------------- Mutant | -10/Materials Mutant | -10/Subcaves Resources | -11 -10 -10 ----------- Run | Yrd Mat Sub Matter Collected 1257 | 287 765 205 Remotely . | . . . Salvage Created 1688 | 118 1344 226 Parts 92 | 10 65 17 Haulers Intercepted 2 | . 2 . Recyclers Shooed 3 | 1 2 . Parts Field Recycled . | . . . Retrieved Matter . | . . . Parts Self-Destructed 4 | . . 4 Prevented . | . . . Parts Restored . | . . . Kills | -11 -10 -10 ------- Run | Yrd Mat Sub Combat Hostiles Destroyed 26 | . 20 6 Guns 21 | . 20 1 Cannons 3 | . . 3 Classes Destroyed 10 | 2 7 1 Worker 5 | . 5 . Builder 3 | . 3 . Tunneler 3 | 3 . . Hauler 2 | . 2 . Recycler 5 | 1 4 . Operator 1 | . 1 . Watcher 2 | . 2 . Swarmer 6 | . 6 . Grunt 14 | . 14 . Subdweller 6 | . . 6 Best Kill Streak 5 | 4 5 2 Combat Bots Only 3 | . 3 2 Max Kills in Single Turn 2 | 1 2 1 Gunslinging . | . . . Exploded . | . . . Melee . | . . . Uniques/NPCs Destroyed . | . . . Combat | -11 -10 -10 -------- Run | Yrd Mat Sub Hostile Shots Fired 168 | . 126 42 Missed 53 | . 44 9 Hits 115 | . 82 33 Projectile 115 | . 82 33 Damage Taken 1686 | . 1028 658 Core 251 | . 144 107 Absorbed by Shields . | . . . Redirected to Shielding 40 | . 19 21 Regen/Repaired (Parts) 109 | . 109 . Core Remaining (%) 100 | 100 . . Volleys Fired 143 | 9 104 30 Largest 2 | 2 2 2 Hottest 90 | 40 90 90 Shots Fired 276 | 18 205 53 Gun 257 | 18 205 34 Cannon 19 | . . 19 Launcher . | . . . Special . | . . . Kinetic 204 | 18 148 38 Thermal . | . . . Explosive . | . . . Electromagnetic 72 | . 57 15 Robot Hit Streak 17 | 10 17 11 Robot Miss Streak 6 | 3 6 3 Penetration Max . | . . . Secondary Targets 4 | . 4 . Max Gunslinging Chain 1 | . 1 . Shots Hit Robots 189 | 13 137 39 Core Hits 71 | 5 57 9 Critical Kills 1 | . 1 . Critical Parts Destroyed . | . . . Critical Strikes 3 | . 1 2 Destroy 2 | . 1 1 Blast 1 | . . 1 Melee Attacks . | . . . Impact . | . . . Slashing . | . . . Piercing . | . . . Sneak Attacks . | . . . Combat Hostiles . | . . . Follow-up Attacks . | . . . Damage Inflicted 2922 | 177 2063 682 Guns 2518 | 177 1922 419 Cannons 263 | . . 263 Explosions 104 | . 104 . Melee . | . . . Ramming 37 | . 37 . Kinetic 1878 | 177 1258 443 Thermal 104 | . 104 . Explosive . | . . . Electromagnetic 903 | . 664 239 Impact . | . . . Slashing . | . . . Piercing . | . . . Highest Corruption . | . . . Average Corruption . | . . . Corruption Purged . | . . . Corruption Blocked . | . . . Overload Shots . | . . . Overflow Damage 1 | . 1 . Projectiles . | . . . Explosions 1 | . 1 . Melee . | . . . Knockbacks . | . . . Impact . | . . . Kinetic . | . . . Secondary . | . . . Self-Inflicted Damage 29 | . 29 . Shots 1 | . 1 . Rammed 9 | . 9 . Targets Rammed 11 | . 11 . Kicked . | . . . Crushed 2 | . 2 . Highest Temperature 406 | . 406 6 Average Temperature 75 | . 76 3 Received Heat Transfer 645 | . 468 177 Effects 6 | . 6 . Shutdowns 1 | . 1 . Interference 3 | . 3 . Damage (minor) 2 | . 2 . Siege Activations . | . . . Martial Activations . | . . . Shielding Activations . | . . . Robots Disrupted . | . . . Combat Hostiles . | . . . Robots Corrupted 2 | . . 2 Combat Hostiles 2 | . . 2 Parts Fried 7 | . 4 3 Impact Corruptions . | . . . Robots Melted . | . . . Combat Hostiles . | . . . Parts Melted . | . . . Heat Transferred 150 | . 150 . Parts Sabotaged . | . . . Parts Stolen . | . . . Parts Stripped . | . . . Power Chain Reactions 3 | . 3 . Alert | -11 -10 -10 ------- Run | Yrd Mat Sub Maximum Alert Level . | . . . Low Security (%) 100 | 100 100 . Level 1 . | . . . Level 2 . | . . . Level 3 . | . . . Level 4 . | . . . Level 5 . | . . . High Security . | . . . Max Security . | . . . Peak Influence 127 | 20 127 . Initial . | . . . Average 45 | 2 47 . Influence Increases 700 | 20 665 15 Destroy 0b10 Robot/C 400 | . 400 . Destroy 0b10 Robot/NC 105 | 20 85 . Destroy Leader 98 | . 98 . Successful Hack 20 | . 20 . Disable Machine 15 | . 15 . Destroy Structure 17 | . 17 . Lose Combat Pursuer 45 | . 30 15 Influence Decreases 685 | 20 553 112 Entered New Map 55 | . . 55 Time Decay 563 | 20 516 27 Lost Part 67 | . 37 30 Squads Dispatched 3 | . 3 . Investigation 1 | . 1 . Extermination . | . . . Reinforcement 2 | . 2 . Assault . | . . . Garrison . | . . . Intercept . | . . . Searches Triggered . | . . . Construction Impeded . | . . . Haulers Reinforced . | . . . Active Scanning Responses . | . . . Cargo Convoy Interrupts . | . . . Stealth | -11 -10 -10 --------- Run | Yrd Mat Sub Distress Signals 2 | . 2 . Communications Jammed . | . . . Distress Signals . | . . . Times Spotted 51 | . 42 9 Peak Tracking Total 6 | . 6 3 Tactical Retreats 3 | . 2 1 Traps | -11 -10 -10 ------- Run | Yrd Mat Sub Traps Triggered 1 | . 1 . Indirectly . | . . . Trap Hack Attempts . | . . . Triggered . | . . . Disarmed . | . . . Reprogrammed . | . . . Reused . | . . . Traps Extracted . | . . . Installed . | . . . Triggered . | . . . Machines | -11 -10 -10 ---------- Run | Yrd Mat Sub Machines Disabled 1 | . 1 . Max in Single Turn 1 | . 1 . Machines Repaired . | . . . Machines Dismantled . | . . . Machines Sabotaged . | . . . Overloaded Fab Kills . | . . . Hacking | -11 -10 -10 --------- Run | Yrd Mat Sub Machines Accessed 7 | . 7 . Terminals 5 | . 5 . Fabricators . | . . . Repair Stations 1 | . 1 . Recycling Units 1 | . 1 . Scanalyzers . | . . . Garrison Access . | . . . Total Hacks 21 | . 21 . Successful 10 | . 10 . Failed 11 | . 11 . Catastrophic 1 | . 1 . Database Lockouts . | . . . Manual 5 | . 5 . Terminals 14 | . 14 . Fabricators . | . . . Repair Stations 5 | . 5 . Recycling Units 2 | . 2 . Scanalyzers . | . . . Garrison Access . | . . . Terminal Hacks 5 | . 5 . Part Schematic 1 | . 1 . Robot Analysis 1 | . 1 . Prototype ID Bank 1 | . 1 . Recall Investigation 1 | . 1 . Hauler Manifests 1 | . 1 . Fabricator Hacks . | . . . Repair Station Hacks 4 | . 4 . Scan Component 3 | . 3 . Repair 1 | . 1 . Recycling Unit Hacks 1 | . 1 . Retrieve Components 1 | . 1 . Scanalyzer . | . . . Garrison Access Hacks . | . . . Unauthorized Hacks . | . . . Terminals . | . . . Fabricators . | . . . Repair Stations . | . . . Recycling Units . | . . . Scanalyzers . | . . . Garrison Access . | . . . Data Cores Recovered 1 | . 1 . Used . | . . . Hacking Detections 6 | . 6 . Full Trace Events . | . . . Feedback Events . | . . . Feedback Blocked . | . . . Robot Schematics Acquired . | . . . Robots Built . | . . . Authchips . | . . . Time . | . . . Total Robot Build Rating . | . . . Part Schematics Acquired 1 | . 1 . Parts Built . | . . . Authchips . | . . . Time . | . . . Total Part Build Rating . | . . . Part Studies Acquired . | . . . Parts Repaired 1 | . 1 . Time 26 | . 26 . Parts Recycled . | . . . Recycled Matter . | . . . Retrieved Matter . | . . . Retrieved Components 10 | . 10 . Parts Scanalyzed . | . . . Part Schematics Acquired . | . . . Parts Damaged . | . . . Bothacking | -11 -10 -10 ------------ Run | Yrd Mat Sub Used RIF Installer . | . . . Robots Hacked . | . . . Non-combat . | . . . Combat . | . . . Robot Hacks Applied . | . . . Relay Couplers Released . | . . . Fabnet Peak Effective % . | . . . Robots Rewired . | . . . Allies Hacked . | . . . Hacks Repelled . | . . . Allies | -11 -10 -10 -------- Run | Yrd Mat Sub Total Allies . | . . . Largest Group . | . . . Highest-Rated Group . | . . . Highest-Rated Ally . | . . . Total Orders . | . . . Ally Attacks . | . . . Total Damage . | . . . Kills . | . . . Allies Corrupted . | . . . Allies Melted . | . . . Intel | -11 -10 -10 ------- Run | Yrd Mat Sub Active Infowar (turns) 1144 | 48 . 1096 Terrain 24 | 24 . . Seismic 1120 | 24 . 1096 Robot Analysis Total 1 | . 1 . Derelict Logs Recovered 1 | . . 1 Drone Launches . | . . . Drone Recoveries . | . . . Exploration | -11 -10 -10 ------------- Run | Yrd Mat Sub Turns Passed 5268 | 164 3425 1679 Spaces Moved 1322 | 81 892 349 Core 9 | 9 . . Treads 1313 | 72 892 349 Legs . | . . . Wheels . | . . . Hover . | . . . Flight . | . . . Fastest Speed 50 | 50 160 320 Average Speed 280 | 151 276 320 Slowest Speed 320 | 160 320 320 Overloaded Moves . | . . . Propulsion Burnouts . | . . . Robots Hopped . | . . . Potential Cave-ins . | . . . Cave-ins Triggered . | . . . Exploration Rate (%) 41 | 6 97 21 Regions Visited 2 Branch Regions 1 Pre-discovered Areas 2 | . . 2 Known Exits Taken . | . . . Unknown Exits Taken 2 | 1 1 . Scrap Searched . | . . . Spaces Dug . | . . . Terrain Destroyed 16 | . 15 1 Melee . | . . . Projectile 1 | . . 1 AOE 15 | . 15 . Terrain Rammed . | . . . Walls Destroyed . | . . . Machines Disabled . | . . . Actions | -11 -10 -10 --------- Run | Yrd Mat Sub Total 2584 | 100 1626 858 Wait 1026 | . 570 456 Move 1320 | 80 891 349 Hop . | . . . Pick Up 29 | 1 26 2 Fast Attach 14 | 8 2 4 Attach 11 | . 5 6 Detach 6 | 1 1 4 Swap 16 | 1 9 6 Drop 8 | . 7 1 Fire 143 | 9 104 30 Melee . | . . . Ram . | . . . Kick . | . . . Crush 11 | . 11 . Escape Stasis . | . . . Rewire . | . . . Trap . | . . . Miscellaneous . | . . . Route ------- -11/Scrapyard -10/Materials (discovered 6 exits: [*Mat x3] / [*Min x2] / [*Sub]) -10/Subcaves History --------- Turn | Location | Event 10 | -11/Scrapyard | Discovered new exit (range 15) 165 | -11/Scrapyard | Entered Materials 300 | -10/Materials | Build established: Mutant 358 | -10/Materials | Discovered new exit (range 14) 600 | -10/Materials | Discovered new exit (range 10) 1486 | -10/Materials | Discovered new exit (range 10) 1635 | -10/Materials | Discovered new exit (range 14) 1939 | -10/Materials | Lost 3 parts (1p1n1w) 2414 | -10/Materials | Core integrity fell below 50% 2617 | -10/Materials | Discovered new exit (range 16) 2915 | -10/Materials | Discovered new exit (range 10) 3115 | -10/Materials | Repaired Lgt. Treads 3590 | -10/Materials | Entered Subcaves 3591 | -10/Subcaves | Approached by a straggling Scientist 3593 | -10/Subcaves | Ambushed by Subdwellers from Twisted Machinery 3630 | -10/Subcaves | Core integrity fell below 20% 3641 | -10/Subcaves | Lost 3 parts (3w) 3690 | -10/Subcaves | Shifting Twisted Machinery released Battle Cannon 3816 | -10/Subcaves | Shifting Twisted Machinery released Flamer 5004 | -10/Subcaves | Learned location of Storage (-9) 5217 | -10/Subcaves | Learned location of Zion (-7) 5217 | -10/Subcaves | Met a Zionite searching for "candidates" 5258 | -10/Subcaves | Shifting Twisted Machinery released Mak. Spear 5269 | -10/Subcaves | Destroyed by S-10 Pest with Light Assault Rifle Last Messages --------------- 05056_ Sub. Machine Gun destroyed. 05060_ Lgt. Treads destroyed. 05064_ Subatomizers dissect the Sub. Laser. 05065_ 0H-AZE(R) suffers critical hit (Destroy). 05071_ 0H-AZE(R) destroyed. 05079_ Acquired 5 matter. 05086_ Acquired 2 matter. 05093_ Subatomizers dissect the Sub. Laser. 05112_ Acquired Sub. Beam Cannon. 05116_ Acquired 7 matter. 05119_ Subatomizers dissect the Sub. Monowheel. 05120_ Acquired 8 matter. 05217_ W5-8WA(z): "Hey you! It's really dangerous down here, I feel that you could die at any moment. For your health and safety might I suggest a trip to Zion?" World map updated: -7/Zion. Mak. Spear falls loose from the Twisted Machinery. 05260_ S-10 Pest springs to life. Map ----- +----------------------------------------------------+ | ???????????????????### ##??????# ###?? #??? | | ?????????????????????## #???????# # # ##??? | | ??????????????????##### #???????# " #??? | | ????????????????### #???##### "| #??? | | ????????????????# ##??## # ###??? | | ????????????????# ###?### ## ####????? | | ????????????????## ### #???# ####### #???????? | | ?????????????????####?## ##### ##????## #??????? | | ???????????????????????## "" ##?#####""#?????? | | ??????????????##????????# " ###" #"""#?????? | | ??????????????# ???????## "" """#" """#?????? | | ???????????????? ??????## "" """" """??????? | | ?????????????????# ??????## """""" ""#????????? | | ?????????????????# #####?# """"" #""#?????????? | | ?????????????????# ## """""""" #???#####?? | | ??????????????????# #####" #?? | | ??????????????????## " "" [*%" #?? | | ???????????????????##### # ## # ## """ ##%=!##?? | | ?????????????##????????### #### ### # #??? | | ?????????????#"?????????# ### "####" """ "" #??? | | ?????????????#" ????????# ###" # """"#??? | | ?????????????#" ???????# "####### "" #??? | | ?????????????# ??????# ##?????## "##??? | | ?????????????# ????### ### ###???????## #???? | | ??????????????? ???#zz ####??????????# #??? | | ????????????????# #??# @ "##?????????????? #??? | | ??????????????### ### " #?????????????? #??? | | ?????????????# "/"" #s# # ##?????????????? #??? | | ????????????? "" " " #???????????????? #??? | | ?????????? """#####????????????????????? | | ????????? # ### ""#????????????????????????? | | ???????????#??????# " "????????????????????????? | | ?????????????????# "## ???????????????????????? | | ???????????????? ###? ??????????????????????? | | ??????????????? ????? ??????????????????????? | | ??????????????"" ????????????????????????????? | | ??????????????"" ????????????????????????????? | | ???????????????" ?????????????????????????????? | | ??????????????? ##?????????????????????????????? | | ???????????????? #???????????????????????????????? | | ?????????????????????????????????????????????????? | | ?????????????????????????????????????????????????? | | ?????????????????????????????????????????????????? | | ?????????????????????????????????????????????????? | | ?????????????????????????????????????????????????? | | ?????????????????????????????????????????????????? | | ?????????????????????????????????????????????????? | | ?????????????????????????????????????????????????? | | ?????????????????????????????????????????????????? | | ?????????????????????????????????????????????????? | +----------------------------------------------------+ Best States ------------- Heat Dissipation 25 Energy Generation 15 Energy Capacity 200 Matter Stores 300 Matter Capacity 300 Sight Range 16 Terrain Scan Range 16 Terrain Scan Density 10 Armor Coverage 150 Core Shielding 20 Evasion (%) 40 Recoil Reduction 2 Item Schematics ----------------- Huge Storage Unit | -10/Materials | Hacked Robot Schematics ------------------ None Fabricated ------------ Nothing Repaired ---------- Lgt. Treads | 22% | -10/Materials Studied --------- None Alien Tech Used ----------------- None Achievements -------------- None Challenges ------------ None Game ------ Seed RelayCarbideStick Manual? 0 Play Time 00:23:24 Cumulative 1216.5 hours Start 2026.09.03 @ 20:01:56 End 2026.09.03 @ 20:24:17 Sessions 1 Manual Loads 0 Difficulty Rogue Special Mode None Game No. 268 Rogue 236 Adventurer 31 Explorer 1 Win Type - Total 58 Types 37/2/9/7/0/0/2/0/0/1 Lore% 78 Gallery% 77 Achievement% 53 Wizard Run 0 Options --------- Layout 1 ASCII 0 Keyboard 0 Movement Arrows Keybinds 0 Fullscreen 1 Font 24/Terminus Map View 50x40 Zoom Use 0% Tactical HUD 1 Map Filters NONE Filters NONE Steam 1 RUN: ed034261-cea1-46c7-82d3-149196da1cc4